{"text_format":"2","workbook":"xlsx","n_sheets":1,"sheets":["Lettings 2021_22 eCORE Template"],"not_rendered":{"charts":0,"images":0,"macros":0,"external_links":0,"defined_names":1,"comments":0,"pivot_tables":0},"unopened":[],"bounds":{"document_bytes":16777216,"sheet_cells":100000,"run_cost":"one","rows_first":2000,"rows_last":500,"rows_between":2000,"halvings":0,"cell_chars":16384,"cell_head_chars":4096},"cells_cut":0,"cells_raw":0,"read":"whole","date_system":"1900"}

{"sheet":"Lettings 2021_22 eCORE Template","index":0,"n_rows":8,"n_cols":133,"rows_kept":8,"cut":false,"hidden":false,"merged":[[1,4,1,5],[1,12,1,19],[1,20,1,27],[1,28,1,34],[1,35,1,42],[1,46,1,47],[1,55,1,60],[1,66,1,67],[1,70,1,74],[1,75,1,77],[1,80,1,85],[1,103,1,104],[1,108,1,109],[1,119,1,128],[1,129,1,130],[2,4,2,5],[2,7,2,9],[2,43,2,45],[2,47,2,49],[2,55,2,60],[2,61,2,62],[2,63,2,64],[2,66,2,69],[2,70,2,74],[2,75,2,79],[2,81,2,83],[2,89,2,91],[2,92,2,95],[2,96,2,99],[2,100,2,103],[2,107,2,109],[2,119,2,128],[2,130,2,131],[3,1,3,5],[3,7,3,11],[3,13,3,19],[3,21,3,34],[3,85,3,95],[3,96,3,98],[3,101,3,103],[3,107,3,109],[3,113,3,114],[3,118,3,128],[3,130,3,131],[4,2,4,3],[4,4,4,5],[4,12,4,44],[4,50,4,51],[4,55,4,60],[4,63,4,65],[4,70,4,74],[4,75,4,77],[4,87,4,88],[4,89,4,95],[4,96,4,98],[4,107,4,109],[4,112,4,113]]}
["Question","Type of letting","Who is the landlord?","Registration no/LA CORE code","Management group","Scheme code","First letting?","Tenant code","Starter/\nIntroductory Tenancy?","Type of tenancy","If you responded 'Other' in Q2b, please state tenancy type","Tenancy Duration","Age of Person 1","Age of Person 2","Age of Person 3","Age of Person 4","Age of Person 5","Age of Person 6","Age of Person 7","Age of Person 8","Gender of Person 1","Gender of Person 2","Gender of Person 3","Gender of Person 4","Gender of Person 5","Gender of Person 6","Gender of Person 7","Gender of Person 8","Relationship (of Person 2) to Person 1","Relationship (of Person 3) to Person 1","Relationship (of Person 4)  to Person 1","Relationship (of Person 5) to Person 1","Relationship (of Person 6) to Person 1","Relationship (of Person 7) to Person 1","Relationship (of Person 8)  to Person 1","Economic Status of Person 1","Economic Status of Person 2","Economic Status of Person 3","Economic Status of Person 4","Economic Status of Person 5","Economic Status of Person 6","Economic Status of Person 7","Economic Status of Person 8","Ethnic group of person 1 as defined by applicant","Nationality of person 1 as defined by applicant","Is anyone in the household…?","Has anyone in the household been seriously injured or ill as a direct result of their time and activities serving as a regular or a reserve?","Does the household contain a pregnant person?","Is the tenant in receipt of or likely to be in receipt of the following:","How much of your income comes from universal credit, state pensions or benefits (excluding child and housing benefit, UC housing element, and council tax support or tax credit)?","Tenant’s or tenant and partner’s net income (after tax deductions). For those receiving Universal Credit, enter net weekly income from employment, pensions and Universal Credit. Exclude child benefit, housing element of universal credit and council tax support. For those not receiving Universal Credit, please enter net weekly income from employment, pensions and other benefits. Exclude housing benefit, child benefit and council tax support.","Income refused","In the tenant's view what was the main reason the household left their last settled home?","If you responded 'Other' in 9a, please state main reason","Was the reason for leaving a direct result of the removal of the spare room subsidy or benefit cap introduced from 2013?","a)  Fully wheelchair accessible","b) Wheelchair access to essential rooms","c) Requires level access housing","f)  Other disability","g)  No disability","H) Don't know","The housing situation for this household immediately before this letting","Enter LA in which household lived immediately before this letting","Part 1 of postcode of previous accommodation","Part 2 of postcode of previous accommodation","If postcode of previous accommodation is unknown or if the previous accommodation was temporary","How long has the household continuously lived in the local authority area where the new letting is located?","How long has the household been on the waiting list of the local authority district where the new letting is located?","Immediately prior to this letting, was this household...?","Was the household given Reasonable Preference (i.e. priority) for housing by the local authority?","Homeless or about to lose their home (within 56  days)","Living in insanitary, overcrowded or unsatisfactory housing","A need to move on medical and welfare grounds (including a disability)","A need to move to avoid hardship to themselves or others","Don't know","Was the letting made under any of the following allocations systems? (CBL)","Was the letting made under any of the following allocations systems? (CHR)","Was the letting made under any of the following allocations systems? (CAP)","Source of referral for this letting?","Rent and other charges period","Basic rent","Service charge","Personal Service Charge","Support charge","Total charge","total charge for care homes","Please tick if there is neither rent nor charge to the occupant for the accommodation","After housing benefit and/or housing element of Universal Credit payment is received, will there be an outstanding amount for basic rent (18i) and/or benefit eligible charges (18ii)?","After housing benefit and/or other housing support payments are received, will there be an outstanding amount for basic rent and/or benefit eligible charges?","void date","void date","void date","Major repairs completion date","Major repairs completion date","Major repairs completion date","if the unit is in a supported scheme for stays of one month or less….","tenancy start date","tenancy start date","tenancy start date","How many times has the unit been previously offered since becoming available for relet since the last tenancy ended or as a first let? For an Affordable Rent or Intermediate Rent Letting, only include number of offers as that type. (For a property let at the firsty attempt enter '0').","RP property reference (if applicable)","Number of bedrooms","Type of unit","Type of building","Is property built or adapted to wheelchair users standards","If this is a relet, was the property most recently let on","Reason for vacancy","Enter LA of property","Part 1 of postcode of property","Part 2 of postcode of property","If previous postcode and new postcode are the same","Managed (owning) organisation CORE ID","Username Field","Managing (Data providing) Organisation CORE ID ","If they've ever served as a regular, did they leave…","Enter the Unique Property Reference Number if known","Is the income…?","Is this letting sheltered accommodation?","Does anyone in the household have any physical or mental health conditions or illness lasting or expected to last for 12 months or more?","Vision (e.g. blindness or partial sight)","Hearing (e.g. deatness or partial hearing)","Mobility (e.g. walking short distances or climbing stairs)","Dexterity (e.g. lifting and carrying objects, using a keyboard)","Learning or understanding or concentrating","Memory","Mental health","Stamina or breathing or fatigue","Socially or behaviourally (e.g. associated with autism spectral disorder (ASD) which includes Aspergers', or attention deficit hyperactivity disorder (ADHD))","Other","Is this letting a London Affordable Rent letting?","Is this letting…?","If you responded 'Other' in 0bi, please state product","Data Protection question"]
["Values","1 - 12","1 - 2","6 or 7 digits","1 - 999",null,"1 - 2","max 13 digits","1 - 2","1 - 5","Text ","1 - 99","15 - 120 or R",{"$nulls":7},"F, M, X or R",{"$nulls":7},"P,C,X or R",{"$nulls":6},"0 - 10",{"$nulls":7},"1 - 19","1 - 17","1 - 5","1 - 3",null,"1, 3  or 6 - 9","1 - 4","0 - 9999","1 or Null","1 - 2, 4,  7 - 14, 16 - 20, 28 - 31 or 34 - 46","Text","2 - 6","1 or null ",{"$nulls":5},"3- 4,  6 - 10, 13, 14, 18, 19, 21 or 23 - 33","ONS CODE - 4 or 9 Digits","XXX(X)","XXX","1 or null","1, 2 or 5 - 10",null,"1, 7 or 11","1 - 3","1 or null",{"$nulls":4},"1 or 2",null,null,"1 - 16 (not 5, 6 or 11)","1 - 10","xxxx.xx",{"$nulls":5},"1 or null","1 - 3","0 - 9999","1 - 31","1 - 12","10 - 20","1 - 31","1 - 12","13 - 20","1 or null","1 - 31","1 - 12","19 or 20","0+","12 Digits","1 - 7","1, 2, 4 or 6 - 10","1 or 2",null,"1 - 4","5, 6 or 8 - 19","ONS CODE 9 digits",null,null,"1 or null","up to 7","username (name for signing into CORE) of person this log should be assigned to.","up to 7","3 - 6","Numeric, up to 12 digits","1 - 3","1 - 4","1 - 3","1 or null",{"$nulls":9},"1 - 3",null,"Text",1]
["Can Be Null?","No","only if 1 = 2, 4, 6, 8, 10 or 12","only if field 1 = 2, 4, 6, 8, 10 or 12 or field 2 = 1","only if field 1 = 1, 3, 5, 7, 9 or 11",null,"only if 1 = 1, 3, 5, 7, 9 or 11","No",null,null,"Yes, if 9 is not 3","only if 9 = 1, 2, 3 or 5","No","Yes, if field 21, 28 and 36 are null","Yes, if 22, 29 and 37 are null","Yes, if 23, 30 and 38 are null","Yes, if 24, 31 and 39 are null","Yes, if 25, 32 and 40 are null","Yes, if 26, 33 and 41 are null","Yes, if  27, 34 and 42 are null"," No","Yes, if 13, 28 and 36 are null","Yes, if 14, 29 and 37 are null","Yes, if 15, 30 and 38 are null","Yes, if 16, 31 and 39 are null","Yes, if 17, 32 and 40 are null","Yes, if 18, 33 and 41 are null","Yes, if 19, 34 and 42 are null","Yes, if 13, 21 and 36 are null","Yes, if 14, 22 and 37 are null","Yes, if 15, 23 and 38 are null","Yes, if 16, 24 and 39 are null","Yes, if 17, 25 and 40 are null","Yes, if 18, 26 and 41 are null","Yes, if 19, 27 and 42 are null","No","Yes, if 13, 21 and 28 are null","Yes, if 14, 22 and 29 are null","Yes, if 15, 23 and 30 are null","Yes, if 16, 24 and 31 are null","Yes, if 17, 25 and 32 are null","Yes, if 18, 26 and 33 are null","Yes, if 19, 27 and 34 are null","No",null,null,"Yes, must be null if 45 = 2 or 3;\nno, if 45 = 1, 4 or 5","No",null,null,"If 51 = 1","Yes","No","Yes, if 52 is not 20","No","Selections are  ((A or B  or C)) - ((A, or B or C and F)) - ((F)) - ((G)) - ((H))",{"$nulls":5},"No",null,"Yes, if 65 = 1",null,"Yes, if 63 and 64 contain full and valid entries","No",null,null,null,"  If 69 = 1, select at least one of the 5 categories;\nIf 69 = 2 or 3, then Null.",{"$nulls":4},"No",{"$nulls":4},"if 85 or 86 = 1","Yes",null,null,"if 85 or 86 = 1","Only if fields 80 - 84 and 86 are not null","Only if fields 80 - 85 are not null","Only if field 48 = 3, 6, 7 or 8 ","If 87 = 2 or 3;\nif 87 = 1, then a value must be entered","No",null,null,"Yes",null,null,null,"No",null,null,null,"Only if 1 = 2, 4, 6, 8, 10 or 12",null,null,null,"No","Only if 1 = 2, 4, 6, 8, 10 or 12;\nor 106 = 15 - 17","No","Only if 1 = 2, 4, 6, 8, 10 or 12",null,null,"Yes","No",null,"Yes: DCLG Admin only","Only if 45 = 2, 3 or 4","Yes","Yes, if 51 = 1","Only if 1 = 1, 3, 5, 7, 9 or 11","No","Yes",{"$nulls":9},"Only if 1 = 1 - 4 or 9 - 12.","Only if 1 = 1 - 8.",null,"No"]
["eCORE Format and Duplicate check","Incorrect GN/SH combination check fields",{"$nulls":4},"Question Removed from 2020/21",{"$nulls":5},"Duplicate check field",{"$nulls":7},"Duplicate check field",{"$nulls":14},"Duplicate check field",{"$nulls":48},"Duplicate check field",{"$nulls":11},"Duplicate check fields",null,null,null,"Duplicate check field","General Needs lettings only",null,null,"All lettings","General Needs lettings only","All lettings","General Needs lettings only",null,null,"Question Removed from 2020/21","Duplicate check field"," “Username does not exist”. ",null,null,"Question removed from 21/22 onwards",null,"Supported Housing lettings only.",{"$nulls":11},"Affordable Rent Lettings only","Intermediate Rent Lettings only"]
["Question Number","1a","1b",null,"1c",null,"1d","1b","2a","2b","2ba","2c",{"$nulls":33},"4ai","4b",5,6,7,8,null,"9a","9aa","9b",10,{"$nulls":5},11,"12a","12b",null,null,"12c","12d",13,"14a","14b",{"$nulls":4},15,null,null,16,17,"   18ai","       18aii","       18aiii","      18aiv","   18av","        18b"," 18c","18d",null,19,{"$nulls":6},1,null,null,20,"21a",22,23,24,25,26,27,28,null,null,28,null,null,null,"4aii","21b","8a","1e","10ia","10ib","10ib","10ib","10ib","10ib","10ib","10ib","10ib","10ib","10ib","0a","0bi","0bii"]
["Field Number",1,{"$f":"B6+1","v":2},{"$f":"C6+1","v":3},{"$f":"D6+1","v":4},{"$f":"E6+1","v":5},{"$f":"F6+1","v":6},{"$f":"G6+1","v":7},{"$f":"H6+1","v":8},{"$f":"I6+1","v":9},{"$f":"J6+1","v":10},{"$f":"K6+1","v":11},{"$f":"L6+1","v":12},{"$f":"M6+1","v":13},{"$f":"N6+1","v":14},{"$f":"O6+1","v":15},{"$f":"P6+1","v":16},{"$f":"Q6+1","v":17},{"$f":"R6+1","v":18},{"$f":"S6+1","v":19},{"$f":"T6+1","v":20},{"$f":"U6+1","v":21},{"$f":"V6+1","v":22},{"$f":"W6+1","v":23},{"$f":"X6+1","v":24},{"$f":"Y6+1","v":25},{"$f":"Z6+1","v":26},{"$f":"AA6+1","v":27},{"$f":"AB6+1","v":28},{"$f":"AC6+1","v":29},{"$f":"AD6+1","v":30},{"$f":"AE6+1","v":31},{"$f":"AF6+1","v":32},{"$f":"AG6+1","v":33},{"$f":"AH6+1","v":34},{"$f":"AI6+1","v":35},{"$f":"AJ6+1","v":36},{"$f":"AK6+1","v":37},{"$f":"AL6+1","v":38},{"$f":"AM6+1","v":39},{"$f":"AN6+1","v":40},{"$f":"AO6+1","v":41},{"$f":"AP6+1","v":42},{"$f":"AQ6+1","v":43},{"$f":"AR6+1","v":44},{"$f":"AS6+1","v":45},{"$f":"AT6+1","v":46},{"$f":"AU6+1","v":47},{"$f":"AV6+1","v":48},{"$f":"AW6+1","v":49},{"$f":"AX6+1","v":50},{"$f":"AY6+1","v":51},{"$f":"AZ6+1","v":52},{"$f":"BA6+1","v":53},{"$f":"BB6+1","v":54},{"$f":"BC6+1","v":55},{"$f":"BD6+1","v":56},{"$f":"BE6+1","v":57},{"$f":"BF6+1","v":58},{"$f":"BG6+1","v":59},{"$f":"BH6+1","v":60},{"$f":"BI6+1","v":61},{"$f":"BJ6+1","v":62},{"$f":"BK6+1","v":63},{"$f":"BL6+1","v":64},{"$f":"BM6+1","v":65},{"$f":"BN6+1","v":66},{"$f":"BO6+1","v":67},{"$f":"BP6+1","v":68},{"$f":"BQ6+1","v":69},{"$f":"BR6+1","v":70},{"$f":"BS6+1","v":71},{"$f":"BT6+1","v":72},{"$f":"BU6+1","v":73},{"$f":"BV6+1","v":74},{"$f":"BW6+1","v":75},{"$f":"BX6+1","v":76},{"$f":"BY6+1","v":77},{"$f":"BZ6+1","v":78},{"$f":"CA6+1","v":79},{"$f":"CB6+1","v":80},{"$f":"CC6+1","v":81},{"$f":"CD6+1","v":82},{"$f":"CE6+1","v":83},{"$f":"CF6+1","v":84},{"$f":"CG6+1","v":85},{"$f":"CH6+1","v":86},{"$f":"CI6+1","v":87},{"$f":"CJ6+1","v":88},{"$f":"CK6+1","v":89},{"$f":"CL6+1","v":90},{"$f":"CM6+1","v":91},{"$f":"CN6+1","v":92},{"$f":"CO6+1","v":93},{"$f":"CP6+1","v":94},{"$f":"CQ6+1","v":95},{"$f":"CR6+1","v":96},{"$f":"CS6+1","v":97},{"$f":"CT6+1","v":98},{"$f":"CU6+1","v":99},{"$f":"CV6+1","v":100},{"$f":"CW6+1","v":101},{"$f":"CX6+1","v":102},{"$f":"CY6+1","v":103},{"$f":"CZ6+1","v":104},{"$f":"DA6+1","v":105},{"$f":"DB6+1","v":106},{"$f":"DC6+1","v":107},{"$f":"DD6+1","v":108},{"$f":"DE6+1","v":109},{"$f":"DF6+1","v":110},{"$f":"DG6+1","v":111},{"$f":"DH6+1","v":112},{"$f":"DI6+1","v":113},{"$f":"DJ6+1","v":114},{"$f":"DK6+1","v":115},{"$f":"DL6+1","v":116},117,118,119,120,121,122,123,124,125,126,127,128,129,130,131,132]
[null,1,1,{"$nulls":4},"T6745",2]
[null,1,1,{"$nulls":4},"T9876"]